{"text_format":"3","workbook":"xlsx","n_sheets":1,"sheets":["Семейный бюджет на месяц"],"not_rendered":{"defined_names":1},"read":"whole","date_system":"1900"}

{"sheet":"Семейный бюджет на месяц","index":0,"n_rows":68,"n_cols":9,"rows_kept":68,"merged":[[0,0,0,6],[2,0,2,1],[2,5,2,6],[8,5,8,6],[18,0,18,3],[27,5,27,8],[29,0,29,3],[36,0,36,3],[37,5,37,8],[42,0,42,3],[44,5,44,8],[54,0,54,3],[54,5,54,8],[61,0,61,3],[62,5,62,8]]}
["Семейный бюджет на месяц"]
[]
["Итоговые запланированные затраты",null,"Итоговые фактические затраты","Разность",null,"Запланированные доходы в месяц"]
[null,{"$f":"Housing[[#Totals],[Запланированные затраты]]+Transportation[[#Totals],[Запланированные затраты]]+Insurance[[#Totals],[Запланированные затраты]]+Food[[#Totals],[Запланированные затраты]]+Children[[#Totals],[Запланированные затраты]]+Legal[[#Totals],[Запланированные затраты]]+Savings[[#Totals],[Запланированные затраты]]+Loans[[#Totals],[Запланированные затраты]]+Entertainment[[#Totals],[Запланированные затраты]]+Taxes[[#Totals],[Запланированные затраты]]+PersonalCare[[#Totals],[Запланированные затраты]]+Pets[[#Totals],[Запланированные затраты]]+Gifts[[#Totals],[Запланированные затраты]]","v":{"v":1203,"d":"1,203р."}},{"$f":"Housing[[#Totals],[Фактические затраты]]+Transportation[[#Totals],[Фактические затраты]]+Insurance[[#Totals],[Фактические затраты]]+Food[[#Totals],[Фактические затраты]]+Children[[#Totals],[Фактические затраты]]+Legal[[#Totals],[Фактические затраты]]+Savings[[#Totals],[Фактические затраты]]+Loans[[#Totals],[Фактические затраты]]+Entertainment[[#Totals],[Фактические затраты]]+Taxes[[#Totals],[Фактические затраты]]+PersonalCare[[#Totals],[Фактические затраты]]+Pets[[#Totals],[Фактические затраты]]+Gifts[[#Totals],[Фактические затраты]]","v":{"v":1317,"d":"1,317р."}},{"$f":"Housing[[#Totals],[Разность]]+Transportation[[#Totals],[Разность]]+Insurance[[#Totals],[Разность]]+Food[[#Totals],[Разность]]+Children[[#Totals],[Разность]]+Legal[[#Totals],[Разность]]+Savings[[#Totals],[Разность]]+Loans[[#Totals],[Разность]]+Entertainment[[#Totals],[Разность]]+Taxes[[#Totals],[Разность]]+PersonalCare[[#Totals],[Разность]]+Pets[[#Totals],[Разность]]+Gifts[[#Totals],[Разность]]","v":{"v":-114,"d":"114р."}},null,"Доход 1",{"v":4000,"d":"4,000р."}]
[{"$nulls":5},"Доход 2",{"v":1200,"d":"1,200р."}]
["Домашнее хозяйство","Запланированные затраты","Фактические затраты","Разность",null,"Дополнительные доходы",{"v":300,"d":"300р."}]
["Залог или аренда",{"v":1000,"d":"1,000р."},{"v":1000,"d":"1,000р."},{"$f":"Housing[Запланированные затраты]-Housing[Фактические затраты]","v":{"v":0,"d":"0р."}},null,"Итоговые доходы в месяц",{"$f":"SUM(G4:G6)","v":{"v":5500,"d":"5,500р."}}]
["Дополнительный залог или плата за аренду",{"v":0,"d":"0р."},{"v":0,"d":"0р."},{"$f":"Housing[Запланированные затраты]-Housing[Фактические затраты]","v":{"v":0,"d":"0р."}}]
["Телефон",{"v":62,"d":"62р."},{"v":100,"d":"100р."},{"$f":"Housing[Запланированные затраты]-Housing[Фактические затраты]","v":{"v":-38,"d":"38р."}},null,"Фактические доходы в месяц"]
["Электричество",{"v":44,"d":"44р."},{"v":125,"d":"125р."},{"$f":"Housing[Запланированные затраты]-Housing[Фактические затраты]","v":{"v":-81,"d":"81р."}},null,"Доход 1",{"v":4000,"d":"4,000р."}]
["Газ",{"v":22,"d":"22р."},{"v":35,"d":"35р."},{"$f":"Housing[Запланированные затраты]-Housing[Фактические затраты]","v":{"v":-13,"d":"13р."}},null,"Доход 2",{"v":1200,"d":"1,200р."}]
["Вода и канализация",{"v":8,"d":"8р."},{"v":8,"d":"8р."},{"$f":"Housing[Запланированные затраты]-Housing[Фактические затраты]","v":{"v":0,"d":"0р."}},null,"Дополнительные доходы",{"v":300,"d":"300р."}]
["Кабельное телевидение",{"v":34,"d":"34р."},{"v":39,"d":"39р."},{"$f":"Housing[Запланированные затраты]-Housing[Фактические затраты]","v":{"v":-5,"d":"5р."}},null,"Итоговые доходы в месяц",{"$f":"SUM(G10:G12)","v":{"v":5500,"d":"5,500р."}}]
["Уборка мусора",{"v":10,"d":"10р."},{"v":10,"d":"10р."},{"$f":"Housing[Запланированные затраты]-Housing[Фактические затраты]","v":{"v":0,"d":"0р."}}]
["Обслуживание и ремонт",{"v":23,"d":"23р."},{"v":0,"d":"0р."},{"$f":"Housing[Запланированные затраты]-Housing[Фактические затраты]","v":{"v":23,"d":"23р."}},null,"Запланированный баланс\n",{"$f":"SUM(G7-B4)","v":{"v":4297,"d":"4,297р."}}]
["Доп. услуги",{"v":0,"d":"0р."},{"v":0,"d":"0р."},{"$f":"Housing[Запланированные затраты]-Housing[Фактические затраты]","v":{"v":0,"d":"0р."}},null,"Фактический баланс",{"$f":"SUM(G13-C4)","v":{"v":4183,"d":"4,183р."}}]
["Другое",{"v":0,"d":"0р."},{"v":0,"d":"0р."},{"$f":"Housing[Запланированные затраты]-Housing[Фактические затраты]","v":{"v":0,"d":"0р."}},null,"Разность",{"$f":"SUM(G16-G15)","v":{"v":-114,"d":"114р."}}]
["Всего",{"$f":"SUBTOTAL(109,Housing[Запланированные затраты])","v":{"v":1203,"d":"1,203р."}},{"$f":"SUBTOTAL(109,Housing[Фактические затраты])","v":{"v":1317,"d":"1,317р."}},{"$f":"SUBTOTAL(109,Housing[Разность])","v":{"v":-114,"d":"114р."}}]
[]
["Транспорт","Запланированные затраты","Фактические затраты","Разность",null,"Кредиты","Запланированные затраты","Фактические затраты","Разность"]
["Оплата автомобиля 1",null,null,{"$f":"Transportation[Запланированные затраты]-Transportation[Фактические затраты]","v":{"v":0,"d":"0р."}},null,"Личное",null,null,{"$f":"Loans[Запланированные затраты]-Loans[Фактические затраты]","v":{"v":0,"d":"0р."}}]
["Оплата автомобиля 2",null,null,{"$f":"Transportation[Запланированные затраты]-Transportation[Фактические затраты]","v":{"v":0,"d":"0р."}},null,"Учащийся",null,null,{"$f":"Loans[Запланированные затраты]-Loans[Фактические затраты]","v":{"v":0,"d":"0р."}}]
["Автобус или такси",null,null,{"$f":"Transportation[Запланированные затраты]-Transportation[Фактические затраты]","v":{"v":0,"d":"0р."}},null,"Кредитная карточка",null,null,{"$f":"Loans[Запланированные затраты]-Loans[Фактические затраты]","v":{"v":0,"d":"0р."}}]
["Страхование",null,null,{"$f":"Transportation[Запланированные затраты]-Transportation[Фактические затраты]","v":{"v":0,"d":"0р."}},null,"Кредитная карточка",null,null,{"$f":"Loans[Запланированные затраты]-Loans[Фактические затраты]","v":{"v":0,"d":"0р."}}]
["Выдача разрешений",null,null,{"$f":"Transportation[Запланированные затраты]-Transportation[Фактические затраты]","v":{"v":0,"d":"0р."}},null,"Кредитная карточка",null,null,{"$f":"Loans[Запланированные затраты]-Loans[Фактические затраты]","v":{"v":0,"d":"0р."}}]
["Топливо",null,null,{"$f":"Transportation[Запланированные затраты]-Transportation[Фактические затраты]","v":{"v":0,"d":"0р."}},null,"Другое",null,null,{"$f":"Loans[Запланированные затраты]-Loans[Фактические затраты]","v":{"v":0,"d":"0р."}}]
["Обслуживание",null,null,{"$f":"Transportation[Запланированные затраты]-Transportation[Фактические затраты]","v":{"v":0,"d":"0р."}},null,"Всего",{"$f":"SUBTOTAL(109,Loans[Запланированные затраты])","v":{"v":0,"d":"0р."}},{"$f":"SUBTOTAL(109,Loans[Фактические затраты])","v":{"v":0,"d":"0р."}},{"$f":"SUBTOTAL(109,Loans[Разность])","v":{"v":0,"d":"0р."}}]
["Другое",null,null,{"$f":"Transportation[Запланированные затраты]-Transportation[Фактические затраты]","v":{"v":0,"d":"0р."}}]
["Всего",{"$f":"SUBTOTAL(109,Transportation[Запланированные затраты])","v":{"v":0,"d":"0р."}},{"$f":"SUBTOTAL(109,Transportation[Фактические затраты])","v":{"v":0,"d":"0р."}},{"$f":"SUBTOTAL(109,Transportation[Разность])","v":{"v":0,"d":"0р."}},null,"Развлекательные программы","Запланированные затраты","Фактические затраты","Разность"]
[{"$nulls":5},"Видео/DVD",null,null,{"$f":"Entertainment[Запланированные затраты]-Entertainment[Фактические затраты]","v":{"v":0,"d":"0р."}}]
["Страхование","Запланированные затраты","Фактические затраты","Разность",null,"Компакт-диски",null,null,{"$f":"Entertainment[Запланированные затраты]-Entertainment[Фактические затраты]","v":{"v":0,"d":"0р."}}]
["Главная",null,null,{"$f":"Insurance[Запланированные затраты]-Insurance[Фактические затраты]","v":{"v":0,"d":"0р."}},null,"Фильмы",null,null,{"$f":"Entertainment[Запланированные затраты]-Entertainment[Фактические затраты]","v":{"v":0,"d":"0р."}}]
["Здоровье",null,null,{"$f":"Insurance[Запланированные затраты]-Insurance[Фактические затраты]","v":{"v":0,"d":"0р."}},null,"Концерты",null,null,{"$f":"Entertainment[Запланированные затраты]-Entertainment[Фактические затраты]","v":{"v":0,"d":"0р."}}]
["Время_эксплуатации",null,null,{"$f":"Insurance[Запланированные затраты]-Insurance[Фактические затраты]","v":{"v":0,"d":"0р."}},null,"Спортивные мероприятия",null,null,{"$f":"Entertainment[Запланированные затраты]-Entertainment[Фактические затраты]","v":{"v":0,"d":"0р."}}]
["Другое",null,null,{"$f":"Insurance[Запланированные затраты]-Insurance[Фактические затраты]","v":{"v":0,"d":"0р."}},null,"Театр",null,null,{"$f":"Entertainment[Запланированные затраты]-Entertainment[Фактические затраты]","v":{"v":0,"d":"0р."}}]
["Всего",{"$f":"SUBTOTAL(109,Insurance[Запланированные затраты])","v":{"v":0,"d":"0р."}},{"$f":"SUBTOTAL(109,Insurance[Фактические затраты])","v":{"v":0,"d":"0р."}},{"$f":"SUBTOTAL(109,Insurance[Разность])","v":{"v":0,"d":"0р."}},null,"Другое",null,null,{"$f":"Entertainment[Запланированные затраты]-Entertainment[Фактические затраты]","v":{"v":0,"d":"0р."}}]
[{"$nulls":5},"Всего",{"$f":"SUBTOTAL(109,Entertainment[Запланированные затраты])","v":{"v":0,"d":"0р."}},{"$f":"SUBTOTAL(109,Entertainment[Фактические затраты])","v":{"v":0,"d":"0р."}},{"$f":"SUBTOTAL(109,Entertainment[Разность])","v":{"v":0,"d":"0р."}}]
["Питание","Запланированные затраты","Фактические затраты","Разность"]
["Бакалея",null,null,{"$f":"Food[Запланированные затраты]-Food[Фактические затраты]","v":{"v":0,"d":"0р."}},null,"Налоги","Запланированные затраты","Фактические затраты","Разность"]
["Обеды вне дома",null,null,{"$f":"Food[Запланированные затраты]-Food[Фактические затраты]","v":{"v":0,"d":"0р."}},null,"Подоходный налог",null,null,{"$f":"Taxes[Запланированные затраты]-Taxes[Фактические затраты]","v":{"v":0,"d":"0р."}}]
["Другое",null,null,{"$f":"Food[Запланированные затраты]-Food[Фактические затраты]","v":{"v":0,"d":"0р."}},null,"Область",null,null,{"$f":"Taxes[Запланированные затраты]-Taxes[Фактические затраты]","v":{"v":0,"d":"0р."}}]
["Всего",{"$f":"SUBTOTAL(109,Food[Запланированные затраты])","v":{"v":0,"d":"0р."}},{"$f":"SUBTOTAL(109,Food[Фактические затраты])","v":{"v":0,"d":"0р."}},{"$f":"SUBTOTAL(109,Food[Разность])","v":{"v":0,"d":"0р."}},null,"Локальная",null,null,{"$f":"Taxes[Запланированные затраты]-Taxes[Фактические затраты]","v":{"v":0,"d":"0р."}}]
[{"$nulls":5},"Другое",null,null,{"$f":"Taxes[Запланированные затраты]-Taxes[Фактические затраты]","v":{"v":0,"d":"0р."}}]
["Дети","Запланированные затраты","Фактические затраты","Разность",null,"Всего",{"$f":"SUBTOTAL(109,Taxes[Запланированные затраты])","v":{"v":0,"d":"0р."}},{"$f":"SUBTOTAL(109,Taxes[Фактические затраты])","v":{"v":0,"d":"0р."}},{"$f":"SUBTOTAL(109,Taxes[Разность])","v":{"v":0,"d":"0р."}}]
["Медицинские услуги",null,null,{"$f":"Children[Запланированные затраты]-Children[Фактические затраты]","v":{"v":0,"d":"0р."}}]
["Одежда",null,null,{"$f":"Children[Запланированные затраты]-Children[Фактические затраты]","v":{"v":0,"d":"0р."}},null,"Личные затраты","Запланированные затраты","Фактические затраты","Разность"]
["Образование",null,null,{"$f":"Children[Запланированные затраты]-Children[Фактические затраты]","v":{"v":0,"d":"0р."}},null,"Медицинские услуги",null,null,{"$f":"PersonalCare[Запланированные затраты]-PersonalCare[Фактические затраты]","v":{"v":0,"d":"0р."}}]
["Школьные принадлежности",null,null,{"$f":"Children[Запланированные затраты]-Children[Фактические затраты]","v":{"v":0,"d":"0р."}},null,"Уход за волосами и ногтями",null,null,{"$f":"PersonalCare[Запланированные затраты]-PersonalCare[Фактические затраты]","v":{"v":0,"d":"0р."}}]
["Организационные взносы",null,null,{"$f":"Children[Запланированные затраты]-Children[Фактические затраты]","v":{"v":0,"d":"0р."}},null,"Одежда",null,null,{"$f":"PersonalCare[Запланированные затраты]-PersonalCare[Фактические затраты]","v":{"v":0,"d":"0р."}}]
["Деньги на обед",null,null,{"$f":"Children[Запланированные затраты]-Children[Фактические затраты]","v":{"v":0,"d":"0р."}},null,"Химчистка",null,null,{"$f":"PersonalCare[Запланированные затраты]-PersonalCare[Фактические затраты]","v":{"v":0,"d":"0р."}}]
["Детский сад и ясли",null,null,{"$f":"Children[Запланированные затраты]-Children[Фактические затраты]","v":{"v":0,"d":"0р."}},null,"Спортивный клуб",null,null,{"$f":"PersonalCare[Запланированные затраты]-PersonalCare[Фактические затраты]","v":{"v":0,"d":"0р."}}]
["Игрушки",null,null,{"$f":"Children[Запланированные затраты]-Children[Фактические затраты]","v":{"v":0,"d":"0р."}},null,"Организационные взносы",null,null,{"$f":"PersonalCare[Запланированные затраты]-PersonalCare[Фактические затраты]","v":{"v":0,"d":"0р."}}]
["Другое",null,null,{"$f":"Children[Запланированные затраты]-Children[Фактические затраты]","v":{"v":0,"d":"0р."}},null,"Другое",null,null,{"$f":"PersonalCare[Запланированные затраты]-PersonalCare[Фактические затраты]","v":{"v":0,"d":"0р."}}]
["Всего",{"$f":"SUBTOTAL(109,Children[Запланированные затраты])","v":{"v":0,"d":"0р."}},{"$f":"SUBTOTAL(109,Children[Фактические затраты])","v":{"v":0,"d":"0р."}},{"$f":"SUBTOTAL(109,Children[Разность])","v":{"v":0,"d":"0р."}},null,"Всего",{"$f":"SUBTOTAL(109,PersonalCare[Запланированные затраты])","v":{"v":0,"d":"0р."}},{"$f":"SUBTOTAL(109,PersonalCare[Фактические затраты])","v":{"v":0,"d":"0р."}},{"$f":"SUBTOTAL(109,PersonalCare[Разность])","v":{"v":0,"d":"0р."}}]
[]
["Право","Запланированные затраты","Фактические затраты","Разность",null,"Домашние животные","Запланированные затраты","Фактические затраты","Разность"]
["Адвокат",null,null,{"$f":"Legal[Запланированные затраты]-Legal[Фактические затраты]","v":{"v":0,"d":"0р."}},null,"Питание",null,null,{"$f":"Pets[Запланированные затраты]-Pets[Фактические затраты]","v":{"v":0,"d":"0р."}}]
["Алименты",null,null,{"$f":"Legal[Запланированные затраты]-Legal[Фактические затраты]","v":{"v":0,"d":"0р."}},null,"Медицинские услуги",null,null,{"$f":"Pets[Запланированные затраты]-Pets[Фактические затраты]","v":{"v":0,"d":"0р."}}]
["Платежи",null,null,{"$f":"Legal[Запланированные затраты]-Legal[Фактические затраты]","v":{"v":0,"d":"0р."}},null,"Уход",null,null,{"$f":"Pets[Запланированные затраты]-Pets[Фактические затраты]","v":{"v":0,"d":"0р."}}]
["Другое",null,null,{"$f":"Legal[Запланированные затраты]-Legal[Фактические затраты]","v":{"v":0,"d":"0р."}},null,"Игрушки",null,null,{"$f":"Pets[Запланированные затраты]-Pets[Фактические затраты]","v":{"v":0,"d":"0р."}}]
["Всего",{"$f":"SUBTOTAL(109,Legal[Запланированные затраты])","v":{"v":0,"d":"0р."}},{"$f":"SUBTOTAL(109,Legal[Фактические затраты])","v":{"v":0,"d":"0р."}},{"$f":"SUBTOTAL(109,Legal[Разность])","v":{"v":0,"d":"0р."}},null,"Другое",null,null,{"$f":"Pets[Запланированные затраты]-Pets[Фактические затраты]","v":{"v":0,"d":"0р."}}]
[{"$nulls":5},"Всего",{"$f":"SUBTOTAL(109,Pets[Запланированные затраты])","v":{"v":0,"d":"0р."}},{"$f":"SUBTOTAL(109,Pets[Фактические затраты])","v":{"v":0,"d":"0р."}},{"$f":"SUBTOTAL(109,Pets[Разность])","v":{"v":0,"d":"0р."}}]
["Сбережения/вложения","Запланированные затраты","Фактические затраты","Разность"]
["Пенсионный фонд",null,null,{"$f":"Savings[Запланированные затраты]-Savings[Фактические затраты]","v":{"v":0,"d":"0р."}},null,"Подарки и пожертвования","Запланированные затраты","Фактические затраты","Разность"]
["Капиталовложения",null,null,{"$f":"Savings[Запланированные затраты]-Savings[Фактические затраты]","v":{"v":0,"d":"0р."}},null,"Благотворительность 1",null,null,{"$f":"Gifts[Запланированные затраты]-Gifts[Фактические затраты]","v":{"v":0,"d":"0р."}}]
["Институт",null,null,{"$f":"Savings[Запланированные затраты]-Savings[Фактические затраты]","v":{"v":0,"d":"0р."}},null,"Благотворительность 2",null,null,{"$f":"Gifts[Запланированные затраты]-Gifts[Фактические затраты]","v":{"v":0,"d":"0р."}}]
["Другое",null,null,{"$f":"Savings[Запланированные затраты]-Savings[Фактические затраты]","v":{"v":0,"d":"0р."}},null,"Благотворительность 3",null,null,{"$f":"Gifts[Запланированные затраты]-Gifts[Фактические затраты]","v":{"v":0,"d":"0р."}}]
["Всего",{"$f":"SUBTOTAL(109,Savings[Запланированные затраты])","v":{"v":0,"d":"0р."}},{"$f":"SUBTOTAL(109,Savings[Фактические затраты])","v":{"v":0,"d":"0р."}},{"$f":"SUBTOTAL(109,Savings[Разность])","v":{"v":0,"d":"0р."}},null,"Всего",{"$f":"SUBTOTAL(109,Gifts[Запланированные затраты])","v":{"v":0,"d":"0р."}},{"$f":"SUBTOTAL(109,Gifts[Фактические затраты])","v":{"v":0,"d":"0р."}},{"$f":"SUBTOTAL(109,Gifts[Разность])","v":{"v":0,"d":"0р."}}]